bitfinex/quotes_ETHUSD_20250223
["timestamp","ask_amount","ask_price","bid_price","bid_amount"]
[1740347778954,4.26093648,2813.6,2812.9,4.31565]
[1740347778955,1.59119939,2813.6,2812.9,0.7607]
[1740347779151,3.5922709,2813.1,2812.5,0.77]
[1740347779323,3.5922709,2813.1,2812.3,0.77]
[1740347779324,3.5553,2812.7,2812.3,0.77]
[1740347779528,3.55523,2812.8,2812.3,0.77]
[1740347779741,3.55501,2813.0,2812.5,0.111279]
[1740347780053,3.55513,2812.9,2812.5,0.111279]
[1740347780213,3.55507,2812.9,2812.5,0.111279]
[1740347780412,0.70487122,2812.7,2812.5,3.666829]
[1740347780715,0.70487122,2812.7,2812.5,0.111279]
[1740347781528,0.70487122,2812.7,2812.4,0.55]
[1740347781711,0.70487122,2812.7,2812.4,4.10563]
[1740347782725,0.70487122,2812.7,2812.4,4.1056]
[1740347782929,0.70487122,2812.7,2812.5,3.55552]
[1740347783331,0.70487122,2812.7,2812.4,4.10564]
[1740347783531,0.70487122,2812.7,2812.5,3.55555]
[1740347784030,0.70487122,2812.7,2812.4,4.10564]
[1740347784514,0.70487122,2812.7,2812.5,3.55553]
[1740347785349,0.70487122,2812.7,2812.4,4.10568]
[1740347787153,0.70487122,2812.7,2812.4,0.55]
[1740347787650,0.70487122,2812.7,2812.4,4.10562]
[1740347787842,0.70487122,2812.7,2812.4,0.55]
[1740347788256,0.70487122,2812.7,2812.4,4.10562]
[1740347790380,0.70487122,2812.7,2812.5,3.55552]
[1740347791991,0.70487122,2812.7,2812.4,4.10567]
[1740347799878,0.70487122,2812.7,2812.4,0.55]
[1740347801018,0.70487122,2812.7,2812.4,4.10568]
[1740347804223,0.70487122,2812.7,2812.4,0.55]
[1740347804424,4.26017122,2812.7,2812.4,0.55]
[1740347804601,0.70487122,2812.7,2812.4,0.55]
[1740347805583,0.70487122,2812.7,2812.4,4.10566]
[1740347810392,3.55558,2812.5,2812.1,3.6673332]
[1740347810626,4.33111,2812.6,2812.1,3.6672832]
[1740347810810,7.88665,2812.6,2812.1,3.6672832]
[1740347811023,7.88665,2812.6,2812.2,0.1112832]
[1740347811231,3.55556,2812.5,2812.2,0.1112832]
[1740347811394,0.7756,2812.6,2812.2,0.1112832]
[1740347811918,4.33112,2812.6,2812.2,0.1112832]
[1740347812309,4.33112,2812.6,2812.1,3.55596]
[1740347812509,3.55556,2812.5,2812.1,3.55596]
[1740347812707,4.33112,2812.6,2812.1,3.55596]
[1740347812946,3.55556,2812.5,2812.1,3.55596]
[1740347815645,0.7756,2812.6,2812.1,3.55596]
[1740347815821,0.7756,2812.6,2812.2,0.11129548]
[1740347816027,3.55557,2812.5,2812.2,0.11129548]
[1740347817739,3.55557,2812.5,2812.1,0.55]
[1740347820559,4.52445661,2812.7,2812.1,0.55]
[1740347820560,0.70487122,2812.7,2812.5,0.55]
[1740347820733,5.25,2813.0,2812.5,0.55]
[1740347820734,5.25,2813.0,2812.7,0.55]
[1740347820930,0.70481474,2813.0,2812.9,4.10504]
[1740347821243,4.37121,2813.8,2813.3,3.55451]
[1740347821556,5.25,2814.0,2813.2,0.7874]
[1740347821711,8.80372,2814.0,2813.5,4.10428]
[1740347821915,10.146475,2814.0,2813.5,4.10428]
[1740347822111,10.146475,2814.0,2813.5,7.65856]
[1740347822830,0.71765648,2813.8,2813.5,4.10428]
[1740347823030,0.71765648,2813.8,2813.5,4.10421]
[1740347823315,0.71765648,2813.8,2813.5,7.65841]
[1740347823523,0.71765648,2813.8,2813.4,0.55]
[1740347823747,0.71765648,2813.8,2813.4,4.10434]
[1740347829267,0.71765648,2813.8,2813.5,3.55427]
[1740347830234,0.71765648,2813.8,2813.5,7.1085]
[1740347830433,0.71765648,2813.8,2813.5,3.55423]
[1740347830872,3.55419,2813.6,2813.4,0.55]
[1740347831452,3.55404,2813.7,2813.4,0.55]
[1740347831880,0.71765648,2813.8,2813.4,0.55]
[1740347832772,4.27156648,2813.8,2813.4,0.55]
[1740347836154,0.71765648,2813.8,2813.4,4.10434]
[1740347837180,4.27158648,2813.8,2813.4,0.55]
[1740347837386,3.55409,2813.7,2813.4,0.55]
[1740347837878,3.55405,2813.7,2813.4,0.55]
[1740347838386,4.27167648,2813.8,2813.4,0.55]
[1740347838591,3.55405,2813.7,2813.4,0.55]
[1740347838742,4.33061,2813.6,2812.8,0.8201]
[1740347838943,3.55443,2813.4,2812.8,0.8201]
[1740347839598,4.89708741,2813.4,2812.9,4.10504]
[1740347839763,4.89708741,2813.4,2813.1,0.55]
[1740347839764,1.34265741,2813.4,2813.1,0.55]
[1740347840307,2.05886044,2813.4,2813.1,4.10473]
[1740347841613,0.71620303,2813.4,2813.1,4.10473]
[1740347842515,0.71620303,2813.4,2813.2,3.55466]
[1740347842814,0.71620303,2813.4,2813.1,4.10479]
[1740347843604,0.71620303,2813.4,2813.2,4.37471]
[1740347845024,0.71620303,2813.4,2813.3,3.55454]
[1740347845795,0.71620303,2813.4,2813.3,4.10454]
[1740347845995,0.7764,2813.8,2813.5,0.55]
[1740347847017,4.33036,2813.8,2813.3,4.10447]
[1740347847674,0.7033283,2813.6,2813.3,4.10447]
[1740347852497,0.7033283,2813.6,2813.3,0.55]
[1740347852703,0.7033283,2813.6,2813.2,4.37467]
[1740347852704,0.7033283,2813.6,2813.5,0.55]
[1740347853405,0.7033283,2813.6,2813.3,0.55]
[1740347853638,0.7033283,2813.6,2813.5,0.55]
[1740347854031,0.7033283,2813.6,2813.5,4.10429]
[1740347854351,0.7033283,2813.6,2813.5,0.55]
[1740347854506,3.55355,2814.1,2813.7,0.55]
[1740347854711,3.55368,2814.0,2813.7,0.55]
[1740347855107,0.72877174,2813.8,2813.4,7.10867]
[1740347855354,0.72877174,2813.8,2813.6,3.55416]
[1740347855643,0.72877174,2813.8,2813.6,3.55407]
[1740347856003,0.72877174,2813.8,2813.7,0.55]
[1740347856239,0.72877174,2813.8,2813.7,4.10403]
[1740347856430,0.72877174,2813.8,2813.6,0.55]
[1740347856637,0.72877174,2813.8,2813.6,4.1041]
[1740347858334,0.72877174,2813.8,2813.7,4.10403]
[1740347861767,0.72877174,2813.8,2813.7,0.55]
[1740347862963,2.0709117,2813.8,2813.7,0.55]
[1740347864510,0.72877174,2813.8,2813.7,0.55]
[1740347874119,2.0709117,2813.8,2813.7,0.55]
[1740347874420,2.8995117,2813.8,2813.7,0.55]
[1740347876220,0.72877174,2813.8,2813.7,0.55]
[1740347880341,0.72877174,2813.8,2813.7,4.10403]
[1740347880541,0.72877174,2813.8,2813.7,0.55]
[1740347881430,0.72877174,2813.8,2813.7,4.10403]
[1740347881635,0.72877174,2813.8,2813.7,0.55]
[1740347885236,3.55434,2813.5,2813.1,3.7842]
[1740347885537,4.89647996,2813.5,2813.1,3.0]
[1740347886127,1.34213996,2813.5,2813.3,0.55]
[1740347889810,4.89649996,2813.5,2813.1,3.0]
[1740347890367,4.89649996,2813.5,2813.0,3.55491]
[1740347890368,4.89649996,2813.5,2813.2,0.11125489]
[1740347891904,5.66147996,2813.3,2813.2,0.11125489]
[1740347892240,3.55529,2812.8,2812.2,3.55584]
[1740347892544,5.66235996,2812.7,2812.2,4.34064]
[1740347892772,5.66235996,2812.7,2812.3,0.55]
[1740347893059,2.10693996,2812.7,2812.3,4.10576]
[1740347893556,2.10693996,2812.7,2812.5,0.55]
[1740347894811,0.70160199,2812.7,2812.5,0.55]
[1740347895009,0.70160199,2812.7,2812.6,3.55542]
[1740347895257,0.70160199,2812.7,2812.5,0.55]
[1740347895444,0.70160199,2812.7,2812.5,4.10554]
[1740347896635,0.70160199,2812.7,2812.5,4.10548]
[1740347897135,0.70160199,2812.7,2812.5,4.10546]
[1740347897335,0.70160199,2812.7,2812.5,3.55555]
[1740347898455,0.70160199,2812.7,2812.5,3.55546]
[1740347901342,0.70160199,2812.7,2812.3,4.10571]
[1740347901662,0.70160199,2812.7,2812.4,0.55]
[1740347901866,0.70160199,2812.7,2812.5,3.55554]
[1740347903422,0.70160199,2812.7,2812.4,4.10566]
[1740347908875,0.70160199,2812.7,2812.4,4.10562]
[1740347909378,0.70160199,2812.7,2812.4,7.66121]
[1740347909876,0.70160199,2812.7,2812.5,3.55555]
[1740347910247,2.09213996,2812.9,2812.5,3.55555]
[1740347911439,2.09213996,2812.9,2812.5,3.55544]
[1740347911831,2.09213996,2812.9,2812.7,0.55]
[1740347912268,0.72891072,2812.8,2812.7,0.55]
[1740347914775,5.25,2813.3,2813.2,4.10467]
[1740347914958,0.7799,2813.4,2813.2,4.10467]
[1740347915146,0.7799,2813.4,2813.2,0.55]
[1740347916488,0.7799,2813.4,2813.3,4.10454]
[1740347916767,1.34213996,2813.5,2813.3,4.10454]
[1740347916934,0.7216414,2813.4,2813.3,4.10454]
[1740347918443,0.7216414,2813.4,2813.3,4.870459]
[1740347918644,1.34213996,2813.9,2813.8,0.55]
[1740347919155,2.04137441,2813.9,2813.8,0.55]
[1740347919674,0.69923445,2813.9,2813.8,0.55]
[1740347920515,4.25301445,2813.9,2813.8,0.55]
[1740347921634,5.39211122,2813.9,2813.8,0.55]
[1740347922150,1.83833122,2813.9,2813.8,0.55]
[1740347922350,5.39211122,2813.9,2813.8,0.55]
[1740347922767,1.83833122,2813.9,2813.8,0.55]
[1740347923285,0.69923445,2813.9,2813.8,0.55]
[1740347928887,4.25301445,2813.9,2813.8,0.55]
[1740347929087,5.07131445,2813.9,2813.8,0.55]
[1740347929390,3.55406,2813.7,2813.3,3.55453]
[1740347929588,3.55406,2813.7,2813.4,0.55]
[1740347931152,3.5543,2813.5,2813.1,3.5547]
[1740347931347,4.37247,2813.6,2813.1,3.5547]
[1740347931606,4.37247,2813.6,2813.2,0.55]
[1740347932756,3.5543,2813.5,2813.2,0.55]
[1740347933555,3.5543,2813.5,2813.1,0.55]
[1740347933798,6.87391117,2813.5,2812.9,3.55495]
[1740347933995,3.55454,2813.3,2812.8,4.38265]
[1740347934304,3.55454,2813.3,2812.9,0.55]
[1740347934658,0.78,2813.2,2812.9,0.55]
[1740347935267,0.78,2813.2,2812.9,4.10504]
[1740347935515,0.78,2813.2,2812.9,0.55]
[1740347935788,4.33472,2813.2,2812.9,0.55]
[1740347936199,4.33472,2813.2,2812.7,0.55]
[1740347936404,3.55488,2813.1,2812.7,0.55]
[1740347937001,0.78,2813.2,2812.9,0.55]
[1740347938803,0.78,2813.2,2812.9,4.10504]
[1740347939104,4.25081081,2813.4,2812.9,4.10504]
[1740347939315,8.58533081,2813.4,2812.9,3.55502]
[1740347939500,1.47632081,2813.4,2813.0,0.55]
[1740347939695,1.95259181,2813.4,2813.0,0.55]
[1740347941011,3.55455,2813.3,2813.0,0.55]
[1740347941185,3.55473,2813.2,2812.7,3.55521]
[1740347941370,3.55473,2813.2,2812.8,3.55514]
[1740347941694,1.34293903,2813.1,2812.9,0.55]
[1740347941892,1.34293903,2813.1,2812.8,0.55]
[1740347942078,1.34293903,2813.1,2812.8,4.10517]
[1740347942418,1.34293903,2813.1,2812.7,4.10528]
[1740347943321,4.89773903,2813.1,2812.7,4.10528]
[1740347947515,1.34293903,2813.1,2812.7,7.6605]
[1740347947716,4.89774903,2813.1,2812.7,4.10522]
[1740347948603,0.70934914,2812.8,2812.7,4.10522]
[1740347949822,0.70934914,2812.8,2812.7,0.66127507]
[1740347951630,0.70934914,2812.8,2812.5,0.55]
[1740347951941,4.26452914,2812.8,2812.5,0.55]
[1740347953064,0.70934914,2812.8,2812.5,0.55]
[1740347959617,4.26454914,2812.8,2812.5,0.55]
[1740347961764,4.26454914,2812.8,2812.3,0.55]
[1740347961983,4.26454914,2812.8,2812.3,4.10579]
[1740347962179,1.34293903,2812.5,2812.3,0.55]
[1740347962385,3.55568,2812.4,2811.9,0.7935]
[1740347962706,3.55568,2812.4,2812.0,3.55618]
[1740347963734,3.55568,2812.4,2812.2,0.55]
[1740347964286,4.89850903,2812.5,2812.2,0.55]
[1740347965285,4.89850903,2812.5,2812.1,0.55]
[1740347966681,4.89850903,2812.5,2811.9,0.7935]
[1740347966682,3.55589,2812.3,2811.9,0.7935]
[1740347966887,1.34293903,2812.3,2811.9,4.34968]
[1740347967086,1.34293903,2812.3,2812.0,0.55]
[1740347968125,1.34293903,2812.5,2812.0,4.10616]
[1740347968331,4.89856903,2812.5,2812.0,4.10616]
[1740347968732,3.55568,2812.4,2812.0,4.10616]
[1740347969192,3.55575,2812.4,2812.0,0.55]
[1740347970350,0.72070596,2812.2,2812.0,4.10618]
[1740347970711,0.72070596,2812.2,2812.0,4.10617]
[1740347973208,6.0802,2812.8,2812.1,2.67443903]
[1740347973412,5.25,2812.8,2812.7,4.1053]
[1740347973731,10.97781903,2813.2,2812.8,0.55]
[1740347974039,1.4532369,2813.1,2812.8,0.55]
[1740347974410,5.0080369,2813.1,2812.8,0.55]
[1740347974613,0.70101579,2812.9,2812.8,0.55]
[1740347977755,0.70101579,2812.9,2812.7,0.55]
[1740347980170,1.34293903,2812.8,2812.7,0.55]
[1740347981035,2.11253903,2812.8,2812.7,0.55]
[1740347981830,2.72155915,2812.8,2812.7,0.55]
[1740347982966,2.72155915,2812.8,2812.4,4.10559]
[1740347983151,2.11253903,2812.8,2812.4,4.10559]
[1740347988555,2.11253903,2812.8,2812.4,0.55]
[1740347988861,5.66770903,2812.8,2812.4,0.55]
[1740347990165,1.34293903,2812.6,2812.2,3.55592]
[1740347990363,3.55563,2812.5,2812.1,3.55606]
[1740347990539,2.17093903,2812.4,2812.2,0.55]
[1740347991161,0.828,2812.4,2812.2,0.55]
[1740347992649,2.17093903,2812.4,2812.0,3.55611]
[1740347992849,5.72662903,2812.4,2812.1,0.55]
[1740347995679,2.17093903,2812.4,2812.1,0.55]
[1740347995922,2.36919293,2812.6,2812.3,3.5558]
[1740347996480,0.72547901,2812.4,2812.3,4.1058]
[1740348001514,0.72547901,2812.4,2812.3,0.55]
[1740348001686,1.36936381,2812.4,2812.3,0.55]
[1740348002476,0.72547901,2812.4,2812.3,0.55]
[1740348004213,0.72547901,2812.4,2812.3,4.1058]
[1740348007919,0.72547901,2812.4,2812.3,4.21709352]
[1740348010759,0.72547901,2812.4,2812.3,4.1058]
[1740348013034,0.72547901,2812.4,2812.3,0.55]
[1740348013626,0.72547901,2812.4,2812.3,0.66129504]
[1740348014105,6.70293984,2812.4,2812.3,0.11129504]
[1740348014429,6.41459804,2812.4,2812.3,0.11129504]
[1740348015446,3.55586,2812.3,2812.0,0.55]
[1740348015620,1.34293903,2812.1,2812.0,0.55]
[1740348023240,1.34293903,2812.1,2811.8,0.55]
[1740348025122,1.34213902,2812.1,2811.8,0.55]
[1740348025553,1.34213902,2812.1,2812.0,0.55]
[1740348026852,4.34308,2812.0,2811.9,0.11130888]
[1740348027058,4.34308,2812.0,2811.9,0.66130888]
[1740348027934,4.34308,2812.0,2811.9,0.55]
[1740348028251,0.7869,2812.0,2811.9,0.55]
[1740348029575,4.34308,2812.0,2811.9,0.55]
[1740348029730,4.9116019,2812.0,2811.9,0.55]
[1740348031672,1.3554219,2812.0,2811.9,0.55]
[1740348033259,1.3554219,2812.0,2811.4,0.7699]
[1740348033260,3.55645,2811.8,2811.4,0.7699]
[1740348033467,1.34293903,2811.7,2811.3,3.55701]
[1740348033966,1.34293903,2811.7,2811.4,0.55]
[1740348034164,1.34293903,2811.7,2811.4,4.10684]
[1740348034369,4.89926903,2811.9,2811.4,4.10684]
[1740348034569,4.89926903,2811.9,2811.6,0.55]
[1740348034770,5.5074435,2811.9,2811.6,0.55]
[1740348035147,5.5074435,2811.9,2811.5,3.55679]
[1740348035148,5.5074435,2811.9,2811.4,0.55]
[1740348035350,5.5074435,2811.9,2811.4,4.10682]
[1740348036036,5.5074435,2811.9,2811.6,0.55]
[1740348037581,0.72885195,2811.7,2811.6,0.55]
[1740348038904,0.72885195,2811.7,2811.6,5.309971]
[1740348039051,5.25,2812.3,2812.1,3.55599]
[1740348039251,5.14955903,2812.5,2812.2,0.55]
[1740348039704,1.34293903,2812.3,2812.2,0.55]
[1740348040009,0.72728438,2812.3,2812.2,4.10593]
[1740348060956,0.72728438,2812.3,2811.8,0.7561]
[1740348061161,1.34293903,2811.9,2811.6,3.55662]
[1740348061472,1.34293903,2812.1,2811.7,3.55655]
[1740348061684,0.7749,2812.2,2811.7,3.55655]
[1740348061889,4.33086,2812.2,2811.8,0.55]
[1740348062204,1.41500834,2812.2,2811.8,4.10643]
[1740348062370,1.41500834,2812.2,2811.8,0.55]
[1740348063700,4.97093834,2812.2,2811.8,0.55]
[1740348078616,3.55663,2811.7,2811.0,3.55736]
[1740348078932,3.55689,2811.5,2811.0,3.55738]
[1740348079232,4.89982903,2811.5,2810.9,4.38756]
[1740348079421,4.89982903,2811.5,2811.1,0.11133812]
[1740348080709,4.89982903,2811.5,2811.2,0.55]
[1740348082419,0.70124567,2811.3,2811.2,0.55]
[1740348083151,0.70124567,2811.3,2811.1,0.55]
[1740348089539,0.70124567,2811.3,2810.9,0.8301]
[1740348089771,2.68162317,2811.3,2810.9,0.8301]
[1740348090278,3.5572,2811.2,2811.0,0.55]
[1740348090477,6.23875317,2811.3,2811.0,0.55]
[1740348094415,2.68162317,2811.3,2811.0,0.55]
[1740348094614,1.14886432,2811.2,2811.0,0.55]
[1740348094822,5.6012747,2811.3,2811.0,0.55]
[1740348094991,2.0441847,2811.3,2811.0,0.55]
[1740348097838,5.6012747,2811.3,2811.0,0.55]
[1740348098193,5.6012747,2811.3,2810.9,4.38759]
[1740348098733,2.0441847,2811.3,2810.9,4.38759]
[1740348099045,2.0441847,2811.3,2810.9,4.38758]
[1740348099392,5.6012547,2811.3,2810.9,4.38758]
[1740348100541,2.0441847,2811.3,2810.9,4.38758]
[1740348102953,5.6012747,2811.3,2810.9,4.38758]
[1740348106849,5.6012747,2811.3,2810.9,7.94509]
[1740348107057,5.6012747,2811.3,2810.9,4.38758]
[1740348108358,2.0441847,2811.3,2810.9,4.38766]
[1740348109457,5.6012847,2811.3,2810.9,4.38766]
[1740348110014,2.0441847,2811.3,2811.0,0.11134919]
[1740348111052,6.70927974,2811.3,2811.0,0.11134919]
[1740348111230,6.70927974,2811.3,2810.9,0.8301]
[1740348112722,6.70927974,2811.3,2810.9,4.38765]
[1740348112921,3.15213974,2811.3,2810.9,4.38765]
[1740348113763,3.15213974,2811.3,2811.0,0.11135013]
[1740348115079,3.15213974,2811.3,2810.9,4.38765]
[1740348116172,2.0441847,2811.3,2810.9,4.38765]
[1740348117382,2.0441847,2811.3,2811.0,0.11134973]
[1740348118639,2.0441847,2811.3,2810.9,4.38765]
[1740348121262,5.6012747,2811.3,2810.9,3.55755]
[1740348121790,5.6012747,2811.3,2811.0,0.11135134]
[1740348121956,7.14452217,2811.3,2811.0,0.11135134]
[1740348122748,7.14452217,2811.3,2810.9,3.55755]
[1740348125397,4.90032903,2811.1,2810.7,1.3537]
[1740348125709,3.55751,2811.0,2810.5,3.55802]
[1740348125991,3.55758,2810.9,2810.5,3.55801]
[1740348126199,4.36188,2810.9,2810.5,3.55801]
[1740348126364,5.70481903,2810.9,2810.5,3.55801]
[1740348126572,6.63105193,2810.9,2810.6,0.55]
[1740348127421,1.7305329,2810.9,2810.6,4.10792]
[1740348128308,1.7305329,2810.9,2810.5,4.10798]
[1740348128882,1.7305329,2810.9,2810.6,3.55794]
[1740348130514,0.8159,2811.2,2810.8,0.55]
[1740348130679,5.25,2811.4,2811.2,3.55712]
[1740348131272,5.25,2811.4,2811.1,4.88751]
[1740348131808,5.25,2811.4,2811.2,3.55715]
[1740348132118,0.71320403,2811.3,2811.2,4.10719]
[1740348132981,3.82717824,2811.9,2811.8,3.55644]
[1740348132982,5.25,2811.9,2811.8,3.55644]
[1740348133182,0.71206382,2811.9,2811.7,3.55655]
[1740348133415,5.25,2812.2,2812.0,4.35997]
[1740348133706,5.25,2812.2,2812.1,3.55606]
[1740348133912,5.25,2812.2,2812.1,4.10606]
[1740348134097,5.25,2812.8,2812.6,3.55532]
[1740348134281,5.25,2812.9,2812.8,3.55517]
[1740348134483,5.25,2812.9,2812.6,4.10534]
[1740348134702,5.25,2812.9,2812.6,7.6607]
[1740348134912,5.25,2812.9,2812.6,4.10534]
[1740348135276,5.25,2812.9,2812.7,3.55522]
[1740348136402,5.25,2812.9,2812.6,4.10534]
[1740348136608,5.25,2812.9,2812.6,7.66069]
[1740348137077,5.96057994,2812.9,2812.6,4.10534]
[1740348137280,5.96057994,2812.9,2812.7,3.55525]
[1740348138212,0.71057994,2812.9,2812.6,4.10534]
[1740348139315,0.71057994,2812.9,2812.7,3.55527]
[1740348139617,0.71057994,2812.9,2812.2,0.8038]
[1740348139920,3.55552,2812.6,2812.0,3.55609]
[1740348140123,3.55552,2812.6,2812.1,0.55]
[1740348140421,3.55542,2812.6,2812.1,0.55]
[1740348140601,3.55568,2812.4,2812.1,0.55]
[1740348140802,3.55568,2812.4,2811.9,4.36006]
[1740348141127,0.796,2812.3,2812.0,0.55]
[1740348142734,0.7516,2812.6,2812.1,0.55]
[1740348142935,0.7516,2812.6,2812.2,3.55585]
[1740348143231,0.7516,2812.6,2812.1,4.10597]
[1740348143804,0.7516,2812.6,2812.2,3.55581]
[1740348144406,5.25,2812.8,2812.4,3.55562]
[1740348144608,5.25,2812.8,2812.5,3.55549]
[1740348147039,0.69974395,2812.6,2812.5,3.55549]
[1740348151502,0.69974395,2812.6,2812.4,4.10567]
[1740348151798,0.69974395,2812.6,2812.3,0.55]
[1740348152821,0.69974395,2812.6,2812.3,4.1058]
[1740348153747,0.69974395,2812.6,2812.3,0.55]
[1740348155213,0.69974395,2812.6,2812.1,4.10599]
[1740348155421,0.69974395,2812.6,2812.1,0.55]
[1740348157608,4.25519395,2812.6,2812.1,0.55]
[1740348158945,0.69974395,2812.6,2812.1,4.106]
[1740348164249,0.69974395,2812.6,2812.5,0.55]
[1740348164452,0.69974395,2812.6,2812.5,4.10555]
[1740348165183,0.8188,2813.1,2812.7,0.55]
[1740348165483,0.71871983,2812.8,2812.7,4.1053]
[1740348183770,0.71871983,2812.8,2812.1,4.53790879]
[1740348183771,1.48791983,2812.8,2812.1,1.81321879]
[1740348183976,1.48791983,2812.8,2812.1,0.8313]
[1740348184213,2.16171181,2812.8,2812.4,3.55566]
[1740348184519,3.55531,2812.7,2812.3,0.55]
[1740348185301,3.55574,2812.4,2811.8,4.38774]
[1740348185507,0.7692,2812.3,2811.8,4.38774]
[1740348186099,0.7692,2812.3,2812.0,0.55]
[1740348186914,4.32506,2812.3,2812.0,0.55]
[1740348187617,7.88097,2812.3,2812.0,0.55]
[1740348187825,4.32506,2812.3,2812.0,0.55]
[1740348188396,7.88096,2812.3,2812.0,0.55]
[1740348188602,4.32506,2812.3,2812.0,0.55]
[1740348191317,3.55594,2812.2,2812.0,0.55]
[1740348194531,3.55594,2812.2,2811.8,0.11130917]
[1740348194532,3.55631,2811.9,2811.8,0.11130917]
[1740348194709,4.37351,2811.9,2811.8,0.11130917]
[1740348195229,4.37351,2811.9,2811.8,0.66130917]
[1740348195429,4.37351,2811.9,2811.8,0.55]
[1740348196826,3.55646,2811.8,2811.3,1.34347625]
[1740348197028,3.55646,2811.8,2811.3,4.90048625]
[1740348197331,3.55646,2811.8,2811.4,0.55]
[1740348199412,3.55644,2811.8,2811.4,0.55]
[1740348199728,0.7230289,2811.6,2811.4,0.55]
[1740348204845,4.38862,2811.4,2811.2,0.11132833]
[1740348205369,4.38862,2811.4,2811.3,0.55]
[1740348205576,0.8316,2811.4,2811.3,0.55]
[1740348206320,0.8316,2811.4,2811.2,0.55]
[1740348206480,4.38855,2811.4,2811.2,0.55]
[1740348206632,4.38855,2811.4,2811.0,0.55]
[1740348206980,3.55732,2811.1,2811.0,0.55]
[1740348207682,3.55745,2811.0,2810.6,2.16167625]
[1740348207973,3.5577,2810.8,2810.5,0.11132833]
[1740348208160,3.5577,2810.8,2810.6,0.55]
[1740348208355,7.11552,2810.8,2810.6,0.55]
[1740348208562,3.5577,2810.8,2810.6,0.55]
[1740348209081,3.5577,2810.8,2810.5,0.55]
[1740348210898,1.51696501,2810.8,2810.4,0.8182]
[1740348211202,3.55819,2810.5,2810.3,0.11132833]
[1740348211698,3.55821,2810.4,2810.3,0.11132833]
[1740348212469,3.55866,2810.1,2809.7,0.7669]
[1740348212684,3.55872,2810.0,2809.7,0.7669]
[1740348213003,3.55853,2810.2,2809.7,0.7669]
[1740348213154,3.55857,2810.2,2809.7,0.7669]
[1740348213355,3.55843,2810.3,2809.8,0.55]
[1740348213552,7.11729,2810.1,2809.8,0.55]
[1740348213899,3.5586,2810.1,2809.8,0.55]
[1740348214585,7.1173,2810.1,2809.8,0.55]
[1740348214970,3.5586,2810.1,2809.8,0.55]
[1740348215172,7.11731,2810.1,2809.8,0.55]
[1740348215388,1.55768721,2810.2,2809.8,0.55]
[1740348215590,3.55864,2810.1,2809.8,0.55]
[1740348216904,3.55872,2810.0,2809.8,0.55]
[1740348217305,3.5586,2810.1,2809.8,0.55]
[1740348217505,4.42606672,2810.1,2809.5,3.55934]
[1740348217706,7.98474672,2810.1,2809.6,3.55921]
[1740348218383,3.55892,2809.9,2809.4,4.32625]
[1740348218563,7.11783,2809.9,2809.5,0.55]
[1740348218902,3.55891,2809.9,2809.5,0.55]
[1740348219065,3.55891,2809.9,2809.5,4.10934]
[1740348219266,0.8317,2809.8,2809.2,0.55]
[1740348219466,0.8317,2809.8,2809.4,0.55]
[1740348219467,4.39074,2809.8,2809.4,0.55]
[1740348219979,4.39074,2809.8,2809.5,0.55]
[1740348220587,0.71017348,2809.7,2809.5,0.55]
[1740348220767,0.71017348,2809.7,2809.1,0.555]
[1740348221088,0.71017348,2809.7,2809.5,0.55]
[1740348222481,4.26930348,2809.7,2809.3,3.55959]
[1740348222909,4.26930348,2809.7,2809.2,4.10972]
[1740348223608,4.26930348,2809.7,2809.4,0.55]
[1740348223813,0.71017348,2809.7,2809.4,0.55]
[1740348223967,0.71017348,2809.7,2809.4,4.10939]
[1740348224166,0.71017348,2809.7,2809.4,0.55]
[1740348224411,0.71017348,2809.7,2809.4,3.5594]
[1740348224583,0.71017348,2809.7,2809.5,0.55]
[1740348225265,0.71017348,2809.7,2809.3,0.55]
[1740348225572,0.71017348,2809.7,2809.3,4.10949]
[1740348225800,0.71017348,2809.7,2809.4,3.55942]
[1740348226011,0.71017348,2809.7,2809.6,0.55]
[1740348226713,0.71017348,2809.7,2809.4,0.55]
[1740348227437,0.71017348,2809.7,2809.4,4.10935]
[1740348227580,0.71017348,2809.7,2809.6,0.55]
[1740348227771,4.26930348,2809.7,2809.3,0.55]
[1740348228009,4.77940383,2809.7,2809.1,3.5648]
[1740348228171,1.22027383,2809.7,2809.3,0.55]
[1740348228365,1.22027383,2809.7,2809.5,3.55929]
[1740348228612,0.71017348,2809.7,2809.5,3.55929]
[1740348228781,0.71017348,2809.7,2809.4,3.55947]
[1740348229310,0.71017348,2809.7,2809.3,0.55]
[1740348229468,0.71017348,2809.7,2809.4,3.55947]
[1740348230778,0.71017348,2809.7,2808.0,0.39281629]
[1740348230975,0.7542,2809.3,2808.7,3.56028]
[1740348231289,1.185564,2809.3,2808.9,3.56011]
[1740348231499,1.185564,2809.3,2809.0,0.55]
[1740348232643,3.55973,2809.2,2808.9,0.55]
[1740348233130,1.185564,2809.3,2808.9,0.55]
[1740348233329,4.745184,2809.3,2808.9,0.55]
[1740348233629,0.8304694,2809.2,2808.9,0.55]
[1740348234019,0.70609461,2809.1,2808.9,0.55]
[1740348234243,0.70609461,2809.1,2808.9,4.1101]
[1740348235439,0.70609461,2809.1,2809.0,4.10998]
[1740348238881,0.70609461,2809.1,2809.0,4.90008]
[1740348239033,0.70609461,2809.1,2809.0,5.01149597]
[1740348239436,0.7764,2809.5,2809.4,3.55947]
[1740348239636,2.07486518,2809.5,2809.4,3.55947]
[1740348241118,2.07486518,2809.5,2809.3,3.55958]
[1740348245712,2.07486518,2809.5,2809.4,3.55947]
[1740348246311,1.29846518,2809.5,2809.4,3.55947]
[1740348251305,1.29846518,2809.5,2809.2,4.10966]